{"text_format":"3","workbook":"xlsx","n_sheets":4,"sheets":["マイルストーン","ロードマップ","詳細情報","グラフ データ"],"not_rendered":{"charts":1,"defined_names":2},"read":"whole","date_system":"1900"}

{"sheet":"マイルストーン","index":0,"n_rows":27,"n_cols":5,"rows_kept":27}
["このワークシートに重要なマイルストーンとアクティビティを入力することにより、ロードマップを作成します。\nこのワークシートのタイトルは、セル C1 に入ります。\nこのワークシートを使用する方法 (スクリーン リーダーの説明など) は、\"詳細情報\" ワークシートに入ります。\nさらなる説明については、列 A を下方に移動します。",null,"マイルストーン"]
["テーブル見出しは、セル C2 から E2 に入ります。[並べ替えとフィルター] オプションを使用すると、特定のエントリを並べ替えたり検索したりします。\nマイルストーンには日付と、マイルストーンを配置する位置をセル C3 以降に入力します。\n列 B は非表示になっています。スクロール バーを使用してこのデータから生成された、タイムラインを部分的に参照するためのグラフです。列 B は、スクロール バーが増分するとき、どのマイルストーンをグラフ化するかを決定します。\n警告:列 B の内容を削除または変更すると、このブックに組み込まれているグラフの整合性がとれなくなる可能性があります。","番号","位置","日付","マイルストーン"]
["セル C1 には、日付とマイルストーンをグラフ化する位置を入力します。タイムラインの上にマイルストーンをグラフ化するには、1 から 3 の正の値を入力します。タイムラインの下にマイルストーンをグラフ化するには、1 から 3 の負の値を入力します。\nテーブルの列 D と E には、日付とマイルストーンまたはアクティビティを入力します。\n右のテーブルの新しい行ごとに、このパターンを繰り返します。\n行 3 から 26 にはサンプル データがあります。独自のロードマップを作成するには、サンプルの内容を変更するか削除します。\n次の説明については、セル A27 に続きます。",{"$f":"ROW($A1)","v":1},1,{"$f":"TODAY()","v":"2018-06-29"},"開始"]
[null,{"$f":"ROW($A2)","v":2},-2,{"$f":"D3+10","v":"2018-07-09"},"問題の分析\nアクティビティ 1"]
[null,3,1,{"$f":"D4+20","v":"2018-07-29"},"ビジネス ケースの作成\nアクティビティ 1\nアクティビティ 2"]
[null,4,-1,{"$f":"D5+30","v":"2018-08-28"},"プレゼンテーションの確認"]
[null,{"$f":"ROW($A5)","v":5},{"v":-0.5,"d":"-1"},{"$f":"D6+40","v":"2018-10-07"},"責任者のキックオフ\nアクティビティ 1\nアクティビティ 2"]
[null,6,2,{"$f":"D7+50","v":"2018-11-26"},"責任者の配置\nアクティビティ 1\nアクティビティ 2\nアクティビティ 3"]
[null,7,{"v":0.5,"d":"1"},{"$f":"D8+60","v":"2019-01-25"},"利害関係者を獲得"]
[null,8,-1,{"$f":"D9+70","v":"2019-04-05"},"リソースの選択"]
[null,9,{"v":0.5,"d":"1"},{"$f":"D10+80","v":"2019-06-24"},"チームの作成\nアクティビティ 1 "]
[null,10,-2,{"$f":"D11+90","v":"2019-09-22"},"チームのキックオフ\nアクティビティ 1\nアクティビティ 2\nアクティビティ 3\nアクティビティ 4"]
[null,11,3,{"$f":"D12+100","v":"2019-12-31"},"データの収集の開始"]
[null,12,-1,{"$f":"D13+90","v":"2020-03-30"},"データ分析"]
[null,13,1,{"$f":"D14+80","v":"2020-06-18"},"デザイン"]
[null,14,1,{"$f":"D15+70","v":"2020-08-27"},"概念実証"]
[null,15,-3,{"$f":"D16+60","v":"2020-10-26"},"テストおよび分析"]
[null,16,-2,{"$f":"D17+50","v":"2020-12-15"},"デザイン変更"]
[null,17,2,{"$f":"D18+40","v":"2021-01-24"},"再開発"]
[null,18,-1,{"$f":"D19+30","v":"2021-02-23"},"テストおよび分析"]
[null,19,1,{"$f":"D20+20","v":"2021-03-15"},"デザイン変更"]
[null,20,-3,{"$f":"D21+10","v":"2021-03-25"},"再開発"]
[null,21,2,{"$f":"D22+20","v":"2021-04-14"},"最終テスト"]
[null,22,1,{"$f":"D23+30","v":"2021-05-14"},"ベータ版"]
[null,23,-3,{"$f":"D24+40","v":"2021-06-23"},"レビュー"]
[null,24,-2,{"$f":"D25+50","v":"2021-08-12"},"市場へのリリース"]
["ロードマップのマイルストーン テーブルに行を追加するには、単純にこの上に新しい行を挿入します。\nこのワークシートで、これ以上の手順はありません。",null,"さらにマイルストーンを追加するには、この線の上に新しい行を挿入します。"]

{"sheet":"ロードマップ","index":1,"n_rows":3,"n_cols":4,"rows_kept":3}
["このワークシートには、マイルストーン ワークシートからマイルストーンを表示しているグラフが入ります。\n年は、セル B2、C2、D2 にあり、スタイル見出し 3 が適用されています。\n一度に 10 マイルストーンずつグラフ化されます。\nロードマップ内を移動するには、セル B4 から D4 のスクロール バーを使用します。\nタイムライン上の年は、セル B3 から D3 に入ります。\nこのワークシートで、これ以上の手順はありません。"]
[]
[null,{"$f":"'グラフ データ'!B20","v":2018},{"$f":"'グラフ データ'!B21","v":""},{"$f":"'グラフ データ'!B22","v":2019}]

{"sheet":"詳細情報","index":2,"n_rows":5,"n_cols":1,"rows_kept":5}
["このブックについて"]
["スクリーン リーダーのガイド"]
["このブックには 4 つのワークシートがあります。\n\nマイルストーン\nロードマップ\n詳細情報\nグラフ データ (非表示)\n\n各ワークシートの説明は、各ワークシートの A 列のセル A1 から始まります。非表示のテキストで書き込まれます。各手順では、その行に含まれる情報について説明しています。明示的な指示がない限り、後続の各手順はセル A2、セル A3 といった順に格納されています。たとえば、説明テキストに、次の手順について \"セル A6 に続く\" と記載されている場合があります。\n\n非表示のテキストは印刷されません。\n\n任意のワークシートからこれらの説明を削除する場合は、列 A を削除するだけです。\n"]
["このロードマップでは、位置を使用してマイルストーンとアクティビティをグラフ化しています。位置の値を使用して、マイルストーンまたはアクティビティに重みを追加することができます。重みの優先順位に従って値を調整するだけです。たとえば、マイルストーン/アクティビティ 3 は、マイルストーン/アクティビティ 2 より重みが大きいとします。グラフ上でこのことを示すには、マイルストーン/アクティビティ 3 の位置の値をマイルストーン/アクティビティ 2 の場合より大きくするだけで済みます。  \n"]
["これは、このワークシートにおける最後の説明です。"]

{"sheet":"グラフ データ","index":3,"n_rows":26,"n_cols":4,"rows_kept":26,"hidden":true}
["このワークシートには、動的なグラフを作成するためのデータが入ります。このワークシートは削除しないでください。\nこのワークシートを削除すると、ブックの動的機能が損なわれる可能性があります。","このワークシートは削除しないでください。"]
["テーブルのタイトルは、セル B2 に入ります。","動的なグラフのコンテンツ"]
["テーブルの見出しは、セル B3 から D3 に入ります。\nこのテーブルは、マイルストーン ワークシートに入力された内容に基づいて自動的に更新されます。\n警告:このテーブルの内容を変更または削除すると、ロードマップ ワークシートのロードマップ グラフの自動更新機能を損なう可能性があります。\n次の説明については、セル A15 に続きます。","日付","イベント","位置"]
[null,{"$f":"IFERROR(IF(LEN(マイルストーン!D3)=0,\"\",INDEX(ロードマップのマイルストーン[],マイルストーン!$B3+$B$17,3)),\"\")","v":"2018-06-29"},{"$f":"IFERROR(IF(LEN(マイルストーン!E3)=0,\"\",INDEX(ロードマップのマイルストーン[],マイルストーン!$B3+$B$17,4)),\"\")","v":"開始"},{"$f":"IFERROR(INDEX(ロードマップのマイルストーン[],マイルストーン!$B3+$B$17,2),\"\")","v":1}]
[null,{"$f":"IFERROR(IF(LEN(マイルストーン!D4)=0,\"\",INDEX(ロードマップのマイルストーン[],マイルストーン!$B4+$B$17,3)),\"\")","v":"2018-07-09"},{"$f":"IFERROR(IF(LEN(マイルストーン!E4)=0,\"\",INDEX(ロードマップのマイルストーン[],マイルストーン!$B4+$B$17,4)),\"\")","v":"問題の分析\nアクティビティ 1"},{"$f":"IFERROR(INDEX(ロードマップのマイルストーン[],マイルストーン!$B4+$B$17,2),\"\")","v":-2}]
[null,{"$f":"IFERROR(IF(LEN(マイルストーン!D5)=0,\"\",INDEX(ロードマップのマイルストーン[],マイルストーン!$B5+$B$17,3)),\"\")","v":"2018-07-29"},{"$f":"IFERROR(IF(LEN(マイルストーン!E5)=0,\"\",INDEX(ロードマップのマイルストーン[],マイルストーン!$B5+$B$17,4)),\"\")","v":"ビジネス ケースの作成\nアクティビティ 1\nアクティビティ 2"},{"$f":"IFERROR(INDEX(ロードマップのマイルストーン[],マイルストーン!$B5+$B$17,2),\"\")","v":1}]
[null,{"$f":"IFERROR(IF(LEN(マイルストーン!D6)=0,\"\",INDEX(ロードマップのマイルストーン[],マイルストーン!$B6+$B$17,3)),\"\")","v":"2018-08-28"},{"$f":"IFERROR(IF(LEN(マイルストーン!E6)=0,\"\",INDEX(ロードマップのマイルストーン[],マイルストーン!$B6+$B$17,4)),\"\")","v":"プレゼンテーションの確認"},{"$f":"IFERROR(INDEX(ロードマップのマイルストーン[],マイルストーン!$B6+$B$17,2),\"\")","v":-1}]
[null,{"$f":"IFERROR(IF(LEN(マイルストーン!D7)=0,\"\",INDEX(ロードマップのマイルストーン[],マイルストーン!$B7+$B$17,3)),\"\")","v":"2018-10-07"},{"$f":"IFERROR(IF(LEN(マイルストーン!E7)=0,\"\",INDEX(ロードマップのマイルストーン[],マイルストーン!$B7+$B$17,4)),\"\")","v":"責任者のキックオフ\nアクティビティ 1\nアクティビティ 2"},{"$f":"IFERROR(INDEX(ロードマップのマイルストーン[],マイルストーン!$B7+$B$17,2),\"\")","v":-0.5}]
[null,{"$f":"IFERROR(IF(LEN(マイルストーン!D8)=0,\"\",INDEX(ロードマップのマイルストーン[],マイルストーン!$B8+$B$17,3)),\"\")","v":"2018-11-26"},{"$f":"IFERROR(IF(LEN(マイルストーン!E8)=0,\"\",INDEX(ロードマップのマイルストーン[],マイルストーン!$B8+$B$17,4)),\"\")","v":"責任者の配置\nアクティビティ 1\nアクティビティ 2\nアクティビティ 3"},{"$f":"IFERROR(INDEX(ロードマップのマイルストーン[],マイルストーン!$B8+$B$17,2),\"\")","v":2}]
[null,{"$f":"IFERROR(IF(LEN(マイルストーン!D9)=0,\"\",INDEX(ロードマップのマイルストーン[],マイルストーン!$B9+$B$17,3)),\"\")","v":"2019-01-25"},{"$f":"IFERROR(IF(LEN(マイルストーン!E9)=0,\"\",INDEX(ロードマップのマイルストーン[],マイルストーン!$B9+$B$17,4)),\"\")","v":"利害関係者を獲得"},{"$f":"IFERROR(INDEX(ロードマップのマイルストーン[],マイルストーン!$B9+$B$17,2),\"\")","v":0.5}]
[null,{"$f":"IFERROR(IF(LEN(マイルストーン!D10)=0,\"\",INDEX(ロードマップのマイルストーン[],マイルストーン!$B10+$B$17,3)),\"\")","v":"2019-04-05"},{"$f":"IFERROR(IF(LEN(マイルストーン!E10)=0,\"\",INDEX(ロードマップのマイルストーン[],マイルストーン!$B10+$B$17,4)),\"\")","v":"リソースの選択"},{"$f":"IFERROR(INDEX(ロードマップのマイルストーン[],マイルストーン!$B10+$B$17,2),\"\")","v":-1}]
[null,{"$f":"IFERROR(IF(LEN(マイルストーン!D11)=0,\"\",INDEX(ロードマップのマイルストーン[],マイルストーン!$B11+$B$17,3)),\"\")","v":"2019-06-24"},{"$f":"IFERROR(IF(LEN(マイルストーン!E11)=0,\"\",INDEX(ロードマップのマイルストーン[],マイルストーン!$B11+$B$17,4)),\"\")","v":"チームの作成\nアクティビティ 1 "},{"$f":"IFERROR(INDEX(ロードマップのマイルストーン[],マイルストーン!$B11+$B$17,2),\"\")","v":0.5}]
[null,{"$f":"IFERROR(IF(LEN(マイルストーン!D12)=0,\"\",INDEX(ロードマップのマイルストーン[],マイルストーン!$B12+$B$17,3)),\"\")","v":"2019-09-22"},{"$f":"IFERROR(IF(LEN(マイルストーン!E12)=0,\"\",INDEX(ロードマップのマイルストーン[],マイルストーン!$B12+$B$17,4)),\"\")","v":"チームのキックオフ\nアクティビティ 1\nアクティビティ 2\nアクティビティ 3\nアクティビティ 4"},{"$f":"IFERROR(INDEX(ロードマップのマイルストーン[],マイルストーン!$B12+$B$17,2),\"\")","v":-2}]
[]
["ロードマップをスクロールする機能は、増分する値を活用して実現しています。この機能のタイトルは、セル B15 に入ります。\nヘッダーと 1 つの値のテーブルは、セル B16 と B17 に入ります。\n次の説明については、セル A19 に続きます。","スクロール機能"]
[null,"行の増分"]
[null,0]
[]
["ロードマップ グラフでは、タイムラインの年がプロットされます。これには、マイルストーン リストから年をキャプチャする必要があります。\nこのセクションのタイトルはセル B19 の \"年\" です。\n年の値は、セル C20 から C22 で自動生成されます。\n警告:これらの年を変更または削除すると、ロードマップ グラフが不正になる場合があります。\n次の説明については、セル A24 に続きます。","年"]
[null,{"$f":"IFERROR(YEAR(B4),\"\")","v":2018},"<-- ロードマップの開始位置の年"]
[null,{"$f":"IFERROR(IF(YEAR($B$9)=$B$20,\"\",YEAR($B$9)),\"\")","v":""},"<-- ロードマップの中間期間の年。ロードマップの開始位置と同じ年の場合、これは空白である可能性があることに注意してください"]
[null,{"$f":"IFERROR(IF(YEAR($B$13)=$B$20,\"\",YEAR($B$13)),\"\")","v":2019},"<-- ロードマップの最後の位置の年。ロードマップの開始位置と同じ年の場合、これは空白である可能性があることに注意してください"]
[]
["ロードマップ グラフのドーナツ マーカーには、このワークシートの動的なグラフ コンテンツの日付が含まれています。日付は、セル C24 の最初の日付、セル C25 の中間の日付、セル C26 の最後の日付です。\nこのワークシートで、これ以上の手順はありません。","最初の日付",{"$f":"B4","v":"2018-06-29"}]
[null,"中間の日付",{"$f":"B9","v":"2018-11-26"}]
[null,"最後の日付",{"$f":"B13","v":"2019-09-22"}]